fUSD/lending_fUSD_20240616
["ID","MTS","AMOUNT","RATE_DAILY","PERIOD"]
[329625854,1718514714447,-500.0,0.00023287,3]
[329625855,1718514714463,-500.0,0.00023287,3]
[329625856,1718514714473,-731.88,0.00023287,3]
[329625857,1718514714491,-500.0,0.00023287,3]
[329625858,1718514714506,-500.0,0.00023287,3]
[329625859,1718514714525,-681.94,0.00023287,3]
[329625860,1718514714564,-627.82,0.00023287,3]
[329625861,1718514714580,-536.58,0.00023287,3]
[329625862,1718514714594,-500.0,0.00023287,3]
[329625863,1718514714607,-530.30662207,0.00023287,3]
[329625864,1718514714620,-500.0,0.00023287,3]
[329625865,1718514714640,-500.0,0.00023287,3]
[329625866,1718514714654,-901.46,0.00023287,3]
[329625867,1718514714702,-500.0,0.00023287,3]
[329625868,1718514714728,-500.0,0.00023287,3]
[329625869,1718514714740,-2047.36,0.00023287,3]
[329625870,1718514714764,-500.0,0.00023287,3]
[329625871,1718514714775,-500.0,0.00023287,3]
[329625872,1718514714796,-500.0,0.00023287,3]
[329625873,1718514714808,-500.0,0.00023287,3]
[329625874,1718514714838,-514.31283588,0.00023287,3]
[329625875,1718514714852,-500.0,0.00023287,3]
[329625876,1718514714877,-500.0,0.00023287,3]
[329625877,1718514714897,-219.39168394,0.00023287,3]
[329625878,1718514714909,-843.71,0.00023287,3]
[329625879,1718514714948,-500.0,0.00023287,3]
[329625880,1718514715047,-500.0,0.00023287,3]
[329625881,1718514715064,-500.0,0.00023287,3]
[329625882,1718514715083,-500.0,0.00023287,3]
[329625883,1718514715118,-513.2,0.00023287,3]
[329625884,1718514715145,-1056.47,0.00023287,3]
[329625885,1718514715156,-500.0,0.00023287,3]
[329625886,1718514715177,-599.50584205,0.00023287,3]
[329625887,1718514715199,-906.02,0.00023287,3]
[329625888,1718514715216,-500.0,0.00023287,3]
[329625889,1718514715240,-500.0,0.00023287,3]
[329625890,1718514715252,-500.0,0.00023287,3]
[329625891,1718514715265,-500.0,0.00023287,3]
[329625892,1718514715275,-500.08,0.00023287,3]
[329625893,1718514715286,-480.20877486,0.00023287,3]
[329625894,1718514715301,-500.0,0.00023287,3]
[329625895,1718514715325,-500.0,0.00023287,3]
[329625896,1718514715341,-500.0,0.00023287,3]
[329625897,1718514715364,-959.23,0.00023287,3]
[329625898,1718514715379,-500.0,0.00023287,3]
[329625899,1718514715394,-631.23,0.00023287,3]
[329625900,1718514715410,-500.0,0.00023287,3]
[329625901,1718514715421,-500.0,0.00023287,3]
[329625902,1718514715435,-666.35,0.00023287,3]
[329625903,1718514715453,-500.0,0.00023287,3]
[329625904,1718514715466,-550.07433982,0.00023287,3]
[329625905,1718514715479,-500.0,0.00023287,3]
[329625906,1718514715490,-639.86,0.00023287,3]
[329625907,1718514715516,-500.0,0.00023287,3]
[329625908,1718514715533,-638.04710711,0.00023287,3]
[329625909,1718514715549,-664.8,0.00023287,3]
[329625910,1718514715561,-500.0,0.00023287,3]
[329625911,1718514715584,-500.0,0.00023287,3]
[329625912,1718514715617,-500.0,0.00023287,3]
[329625913,1718514715661,-1051.67,0.00023287,3]
[329625914,1718514715683,-961.09,0.00023287,3]
[329625915,1718514715711,-500.0,0.00023287,3]
[329625916,1718514715733,-499.59479107,0.00023287,3]
[329625917,1718514715758,-500.0,0.00023287,3]
[329625918,1718514715780,-500.0,0.00023287,3]
[329625919,1718514715792,-500.0,0.00023287,3]
[329625920,1718514715806,-1195.84,0.00023287,3]
[329625921,1718514715822,-500.0,0.00023287,3]
[329625922,1718514715858,-500.0,0.00023287,3]
[329625923,1718514715886,-500.0,0.00023287,3]
[329625924,1718514715897,-770.75,0.00023287,3]
[329625925,1718514715912,-500.0,0.00023287,3]
[329625926,1718514715926,-893.17,0.00023287,3]
[329625927,1718514715940,-500.0,0.00023287,3]
[329625928,1718514715988,-500.0,0.00023287,3]
[329625929,1718514716003,-886.11,0.00023287,3]
[329625930,1718514716036,-500.0,0.00023287,3]
[329625931,1718514716056,-618.77,0.00023287,3]
[329625932,1718514716082,-500.0,0.00023287,3]
[329625933,1718514716100,-500.0,0.00023287,3]
[329625934,1718514716148,-500.0,0.00023287,3]
[329625935,1718514716188,-985.78,0.00023287,3]
[329625936,1718514716200,-500.0,0.00023287,3]
[329625937,1718514716221,-835.26,0.00023287,3]
[329625938,1718514716234,-513.36,0.00023287,3]
[329625939,1718514716271,-500.0,0.00023287,3]
[329625940,1718514716324,-500.0,0.00023287,3]
[329625941,1718514716346,-501.85,0.00023287,3]
[329625942,1718514716365,-989.9,0.00023287,3]
[329625943,1718514716407,-500.0,0.00023287,3]
[329625944,1718514716418,-500.0,0.00023287,3]
[329625945,1718514716428,-572.39,0.00023287,3]
[329625946,1718514716461,-500.0,0.00023287,3]
[329625947,1718514716484,-500.0,0.00023287,3]
[329625948,1718514716497,-500.0,0.00023287,3]
[329625949,1718514716526,-634.14,0.00023287,3]
[329625950,1718514716557,-500.0,0.00023287,3]
[329625951,1718514716568,-500.56430027,0.00023287,3]
[329625952,1718514716581,-500.0,0.00023287,3]
[329625953,1718514716597,-508.55,0.00023287,3]
[329625954,1718514716634,-578.78,0.00023287,3]
[329625955,1718514716646,-500.0,0.00023287,3]
[329625956,1718514716680,-500.0,0.00023287,3]
[329625957,1718514716690,-623.1,0.00023287,3]
[329625958,1718514716712,-500.0,0.00023287,3]
[329625959,1718514716723,-500.0,0.00023287,3]
[329625960,1718514716751,-500.0,0.00023287,3]
[329625961,1718514716765,-558.36,0.00023287,3]
[329625962,1718514716782,-500.0,0.00023287,3]
[329625963,1718514716809,-692.22,0.00023287,3]
[329625964,1718514716836,-500.0,0.00023287,3]
[329625965,1718514716854,-500.0,0.00023287,3]
[329625966,1718514716870,-500.0,0.00023287,3]
[329625967,1718514716886,-679.49,0.00023287,3]
[329625968,1718514716905,-500.0,0.00023287,3]
[329625969,1718514716918,-546.36,0.00023287,3]
[329625970,1718514716934,-500.0,0.00023287,3]
[329625971,1718514716957,-500.0,0.00023287,3]
[329625972,1718514717000,-500.0,0.00023287,3]
[329625973,1718514717015,-500.0,0.00023287,3]
[329625974,1718514717037,-500.0,0.00023287,3]
[329625975,1718514717058,-500.0,0.00023287,3]
[329625976,1718514717080,-500.0,0.00023287,3]
[329625977,1718514717100,-500.0,0.00023287,3]
[329625978,1718514717163,-500.0,0.00023287,3]
[329625979,1718514717180,-611.71,0.00023287,3]
[329625980,1718514717194,-500.0,0.00023287,3]
[329625981,1718514717208,-408.31924946,0.00023287,3]
[329625982,1718514717227,-1146.72,0.00023287,3]
[329625983,1718514717237,-420.65929302,0.00023287,3]
[329625984,1718514717250,-500.0,0.00023287,3]
[329625985,1718514717263,-500.0,0.00023287,3]
[329625986,1718514717278,-500.0,0.00023287,3]
[329625987,1718514717292,-500.0,0.00023287,3]
[329625988,1718514717303,-500.0,0.00023287,3]
[329625989,1718514717332,-500.0,0.00023287,3]
[329625990,1718514717342,-898.73,0.00023287,3]
[329625991,1718514717362,-500.0,0.00023287,3]
[329625992,1718514717378,-500.0,0.00023287,3]
[329625993,1718514717390,-607.26,0.00023287,3]
[329625994,1718514717420,-778.55,0.00023287,3]
[329625995,1718514717437,-500.0,0.00023287,3]
[329625996,1718514717460,-500.0,0.00023287,3]
[329625997,1718514717502,-500.0,0.00023287,3]
[329625998,1718514717519,-510.7,0.00023287,3]
[329625999,1718514717576,-500.0,0.00023287,3]
[329626000,1718514717588,-738.65,0.00023287,3]
[329626001,1718514717641,-595.17,0.00023287,3]
[329626002,1718514717654,-698.26,0.00023287,3]
[329626003,1718514717666,-500.0,0.00023287,3]
[329626004,1718514717679,-500.0,0.00023287,3]
[329626005,1718514717691,-500.0,0.00023287,3]
[329626006,1718514717709,-500.0,0.00023287,3]
[329626007,1718514717737,-500.0,0.00023287,3]
[329626008,1718514717751,-644.29292293,0.00023287,3]
[329626009,1718514717764,-500.0,0.00023287,3]
[329626010,1718514717780,-500.0,0.00023287,3]
[329626011,1718514717797,-500.0,0.00023287,3]
[329626012,1718514717816,-500.0,0.00023287,3]
[329626013,1718514717828,-742.17,0.00023287,3]
[329626014,1718514717848,-832.09,0.00023287,3]
[329626015,1718514717869,-500.0,0.00023287,3]
[329626016,1718514717883,-556.33806852,0.00023287,3]
[329626017,1718514717894,-500.0,0.00023287,3]
[329626018,1718514717906,-500.0,0.00023287,3]
[329626019,1718514717917,-669.49,0.00023287,3]
[329626020,1718514717931,-500.0,0.00023287,3]
[329626021,1718514717952,-500.0,0.00023287,3]
[329626022,1718514717976,-500.0,0.00023287,3]
[329626023,1718514717993,-847.82,0.00023287,3]
[329626024,1718514718015,-984.98,0.00023287,3]
[329626025,1718514718025,-500.0,0.00023287,3]
[329626026,1718514718040,-500.0,0.00023287,3]
[329626027,1718514718066,-500.0,0.00023287,3]
[329626028,1718514718079,-500.0,0.00023287,3]
[329626029,1718514718090,-583.35809449,0.00023287,2]
[329626030,1718514718102,-500.0,0.00023287,3]
[329626031,1718514718114,-652.56,0.00023287,3]
[329626032,1718514718125,-500.0,0.00023287,3]
[329626033,1718514718137,-500.0,0.00023287,3]
[329626034,1718514718150,-500.0,0.00023287,3]
[329626035,1718514718162,-500.0,0.00023287,3]
[329626036,1718514718174,-500.0,0.00023287,3]
[329626037,1718514718204,-411.48,0.00023287,3]
[329626038,1718514718215,-843.09,0.00023287,3]
[329626039,1718514718240,-500.0,0.00023287,3]
[329626040,1718514718264,-535.33,0.00023287,3]
[329626041,1718514718276,-1201.34,0.00023287,3]
[329626042,1718514718286,-500.0,0.00023287,3]
[329626043,1718514718297,-909.26,0.00023287,3]
[329626044,1718514718310,-500.0,0.00023287,3]
[329626045,1718514718323,-452.07943071,0.00023287,3]
[329626046,1718514718334,-500.0,0.00023287,3]
[329626047,1718514718345,-1002.88,0.00023287,3]
[329626048,1718514718357,-500.0,0.00023287,3]
[329626049,1718514718370,-500.0,0.00023287,3]
[329626050,1718514718385,-778.38,0.00023287,3]
[329626051,1718514718400,-500.0,0.00023287,3]
[329626052,1718514718413,-297.26148656,0.00023287,3]
[329626053,1718514718425,-500.0,0.00023287,3]
[329626054,1718514718437,-500.0,0.00023287,3]
[329626055,1718514718449,-1202.7,0.00023287,3]
[329626056,1718514718460,-500.0,0.00023287,3]
[329626057,1718514718478,-500.0,0.00023287,3]
[329626058,1718514718488,-500.0,0.00023287,3]
[329626059,1718514718499,-776.34,0.00023287,3]
[329626060,1718514718510,-500.0,0.00023287,3]
[329626061,1718514718521,-500.0,0.00023287,3]
[329626062,1718514718532,-500.0,0.00023287,3]
[329626063,1718514718542,-544.11,0.00023287,3]
[329626064,1718514718567,-500.0,0.00023287,3]
[329626065,1718514718578,-527.2,0.00023287,3]
[329626066,1718514718589,-500.0,0.00023287,3]
[329626067,1718514718599,-232.72858262,0.00023287,3]
[329626068,1718514718611,-500.0,0.00023287,3]
[329626069,1718514718621,-675.42,0.00023287,3]
[329626070,1718514718634,-500.0,0.00023287,7]
[329626071,1718514718645,-500.0,0.00023287,3]
[329626072,1718514718658,-500.0,0.00023287,3]
[329626073,1718514718668,-500.0,0.00023287,3]
[329626074,1718514718681,-500.0,0.00023287,3]
[329626075,1718514718692,-500.0,0.00023287,3]
[329626076,1718514718703,-500.0,0.00023287,3]
[329626077,1718514718713,-500.0,0.00023287,3]
[329626078,1718514718724,-500.0,0.00023287,3]
[329626079,1718514718740,-343.84,0.00023287,3]
[329626080,1718514718759,-500.0,0.00023287,3]
[329626081,1718514718770,-500.0,0.00023287,3]
[329626082,1718514718780,-500.0,0.00023287,3]
[329626083,1718514718791,-500.0,0.00023287,3]
[329626084,1718514718802,-1832.91,0.00023287,3]
[329626085,1718514718813,-500.0,0.00023287,3]
[329626086,1718514718824,-500.0,0.00023287,3]
[329626087,1718514718835,-567.88,0.00023287,3]
[329626088,1718514718846,-551.74,0.00023287,3]
[329626089,1718514718857,-500.0,0.00023287,3]
[329626090,1718514718868,-466.20938315,0.00023287,3]
[329626091,1718514718882,-901.11,0.00023287,3]
[329626092,1718514718894,-681.26,0.00023287,3]
[329626093,1718514718905,-500.0,0.00023287,3]
[329626094,1718514718917,-500.0,0.00023287,3]
[329626095,1718514718928,-418.44227498,0.00023287,3]
[329626096,1718514718939,-726.69,0.00023287,3]
[329626097,1718514718952,-500.0,0.00023287,3]
[329626098,1718514718963,-3304.19,0.00023287,3]
[329626099,1718514718974,-545.46,0.00023287,3]
[329626100,1718514718986,-736.37,0.00023287,3]
[329626101,1718514719012,-500.0,0.00023287,3]
[329626102,1718514719023,-500.0,0.00023287,3]
[329626103,1718514719037,-500.0,0.00023287,3]
[329626104,1718514719082,-500.0,0.00023287,3]
[329626105,1718514719107,-500.0,0.00023287,3]
[329626106,1718514719118,-500.0,0.00023287,3]
[329626107,1718514719131,-500.0,0.00023287,3]
[329626108,1718514719149,-500.0,0.00023287,3]
[329626109,1718514719167,-500.0,0.00023287,3]
[329626110,1718514719179,-500.0,0.00023287,3]
[329626111,1718514719202,-997.85,0.00023287,3]
[329626112,1718514719214,-14230.41,0.00023287,3]
[329626113,1718514719229,-500.0,0.00023287,3]
[329626114,1718514719242,-530.5,0.00023287,3]
[329626115,1718514719254,-1006.75,0.00023287,3]
[329626116,1718514719272,-500.0,0.00023287,3]
[329626117,1718514719283,-500.0,0.00023287,3]
[329626118,1718514719329,-500.0,0.00023287,3]
[329626119,1718514719341,-500.0,0.00023287,3]
[329626120,1718514719371,-500.0,0.00023287,3]
[329626121,1718514719382,-500.0,0.00023287,3]
[329626122,1718514719412,-500.0,0.00023287,3]
[329626123,1718514719433,-759.3,0.00023287,3]
[329626124,1718514719453,-500.0,0.00023287,3]
[329626125,1718514719472,-500.0,0.00023287,3]
[329626126,1718514719497,-500.0,0.00023287,3]
[329626127,1718514719528,-1157.82,0.00023287,3]
[329626128,1718514719553,-674.57,0.00023287,3]
[329626129,1718514719564,-566.27,0.00023287,3]
[329626130,1718514719577,-500.0,0.00023287,3]
[329626131,1718514719589,-1539.31,0.00023287,3]
[329626132,1718514719602,-943.14,0.00023287,3]
[329626133,1718514719629,-500.0,0.00023287,3]
[329626134,1718514719641,-659.14,0.00023287,3]
[329626135,1718514719652,-500.0,0.00023287,3]
[329626136,1718514719664,-235.2638778,0.00023287,3]
[329626137,1718514719675,-500.0,0.00023287,3]
[329626138,1718514719686,-560.32,0.00023287,3]
[329626139,1718514719705,-614.56,0.00023287,3]
[329626140,1718514719718,-500.0,0.00023287,3]
[329626141,1718514719733,-500.0,0.00023287,3]
[329626142,1718514719899,-7764.92,0.00023287,3]
[329626143,1718514719944,-557.31,0.00023287,3]
[329626144,1718514719958,-552.59,0.00023287,3]
[329626145,1718514719978,-661.73,0.00023287,3]
[329626146,1718514719994,-611.43,0.00023287,3]
[329626147,1718514720013,-674.64,0.00023287,3]
[329626148,1718514720034,-1729.68,0.00023287,3]
[329626149,1718514720063,-500.0,0.00023287,3]
[329626150,1718514720076,-500.0,0.00023287,3]
[329626151,1718514720103,-1354.36,0.00023287,3]
[329626152,1718514720130,-604.17,0.00023287,3]
[329626153,1718514720160,-664.59,0.00023287,3]
[329626154,1718514720208,-10271.42,0.00023287,3]
[329626155,1718514720238,-500.0,0.00023287,3]
[329626156,1718514720260,-900.1,0.00023287,3]
[329626157,1718514720286,-500.0,0.00023287,3]
[329626158,1718514720298,-500.0,0.00023287,3]
[329626159,1718514720309,-500.0,0.00023287,3]
[329626160,1718514720341,-818.66,0.00023287,3]
[329626161,1718514720353,-500.0,0.00023287,3]
[329626162,1718514720367,-396.86682423,0.00023287,3]
[329626163,1718514720385,-1612.07,0.00023287,3]
[329626164,1718514720412,-1755.9,0.00023287,3]
[329626165,1718514720433,-611.26,0.00023287,3]
[329626166,1718514720449,-500.0,0.00023287,3]
[329626167,1718514720466,-1606.26,0.00023287,3]
[329626168,1718514720477,-4378.33,0.00023287,3]
[329626169,1718514720492,-500.0,0.00023287,3]
[329626170,1718514720518,-500.0,0.00023287,3]
[329626171,1718514720537,-4916.83,0.00023287,3]
[329626172,1718514720553,-2853.1,0.00023287,3]
[329626173,1718514720569,-500.0,0.00023287,3]
[329626174,1718514720592,-1035.35,0.00023287,3]
[329626175,1718514720606,-500.0,0.00023287,3]
[329626176,1718514720619,-869.12,0.00023287,3]
[329626177,1718514720661,-567.1,0.00023287,3]
[329626178,1718514720673,-578.11,0.00023287,3]
[329626179,1718514720699,-500.0,0.00023287,3]
[329626180,1718514720712,-500.0,0.00023287,3]
[329626181,1718514720731,-1538.82,0.00023287,3]
[329626182,1718514720768,-2296.48,0.00023287,3]
[329626183,1718514720797,-763.71,0.00023287,3]
[329626184,1718514720810,-1775.07,0.00023287,3]
[329626185,1718514720841,-500.0,0.00023287,3]
[329626186,1718514720878,-964.71,0.00023287,3]
[329626187,1718514720892,-500.0,0.00023287,3]
[329626188,1718514720922,-895.78,0.00023287,3]
[329626189,1718514720947,-642.17,0.00023287,3]
[329626190,1718514720976,-636.93,0.00023287,3]
[329626191,1718514720994,-2443.29,0.00023287,3]
[329626192,1718514721024,-500.0,0.00023287,3]
[329626193,1718514721043,-1515.42,0.00023287,3]
[329626194,1718514721064,-1004.46,0.00023287,3]
[329626195,1718514721078,-1070.36,0.00023287,3]
[329626196,1718514721102,-803.03,0.00023287,3]
[329626197,1718514721128,-923.04,0.00023287,3]
[329626198,1718514721144,-500.0,0.00023287,3]
[329626199,1718514721157,-500.0,0.00023287,3]
[329626200,1718514721180,-593.8,0.00023287,3]
[329626201,1718514721192,-797.61,0.00023287,3]
[329626202,1718514721204,-500.0,0.00023287,3]
[329626203,1718514721228,-588.71,0.00023287,3]
[329626204,1718514721245,-500.0,0.00023287,3]
[329626205,1718514721269,-504.12219169,0.00023287,3]
[329626206,1718514721285,-2230.64,0.00023287,3]
[329626207,1718514721308,-1061.13,0.00023287,3]
[329626208,1718514721323,-500.0,0.00023287,3]
[329626209,1718514721344,-500.0,0.00023287,3]
[329626210,1718514721357,-9618.01,0.00023287,3]
[329626211,1718514721384,-500.0,0.00023287,3]
[329626212,1718514721404,-500.0,0.00023287,3]
[329626213,1718514721421,-500.0,0.00023287,3]
[329626214,1718514721433,-2383.54,0.00023287,3]
[329626215,1718514721444,-500.0,0.00023287,3]
[329626216,1718514721455,-500.0,0.00023287,3]
[329626217,1718514721468,-860.94,0.00023287,3]
[329626218,1718514721489,-792.78,0.00023287,3]
[329626219,1718514721522,-4216.59,0.00023287,3]
[329626220,1718514721537,-858.57,0.00023287,3]
[329626221,1718514721548,-2109.27,0.00023287,3]
[329626222,1718514721559,-567.07,0.00023287,3]
[329626223,1718514721571,-500.0,0.00023287,3]
[329626224,1718514721583,-1037.47,0.00023287,3]
[329626225,1718514721595,-1400.62,0.00023287,3]
[329626226,1718514721620,-1574.3,0.00023287,3]
[329626227,1718514721634,-500.0,0.00023287,3]
[329626228,1718514721647,-500.0,0.00023287,3]
[329626229,1718514721673,-2771.95,0.00023287,3]
[329626230,1718514721705,-500.0,0.00023287,3]
[329626231,1718514721733,-3713.47,0.00023287,3]
[329626232,1718514721747,-534.45,0.00023287,3]
[329626233,1718514721762,-500.0,0.00023287,3]
[329626234,1718514721777,-1420.21,0.00023287,3]
[329626235,1718514721791,-500.0,0.00023287,3]
[329626236,1718514721808,-500.0,0.00023287,3]
[329626237,1718514721818,-1310.36,0.00023287,3]
[329626238,1718514721829,-500.0,0.00023287,3]
[329626239,1718514721878,-633.25,0.00023287,3]
[329626240,1718514721911,-1378.93,0.00023287,3]
[329626241,1718514721926,-790.92,0.00023287,3]
[329626242,1718514721949,-851.88,0.00023287,3]
[329626243,1718514721981,-500.0,0.00023287,3]
[329626244,1718514722009,-2966.95,0.00023287,3]
[329626245,1718514722046,-636.09,0.00023287,3]
[329626246,1718514722085,-712.87,0.00023287,3]
[329626247,1718514722098,-500.0,0.00023287,3]
[329626248,1718514722152,-827.77,0.00023287,3]
[329626249,1718514722170,-2232.36,0.00023287,3]
[329626250,1718514722183,-860.52,0.00023287,3]
[329626251,1718514722213,-2707.96,0.00023287,3]
[329626252,1718514722245,-614.18,0.00023287,3]
[329626253,1718514722300,-500.0,0.00023287,3]
[329626254,1718514722344,-2212.02,0.00023287,3]
[329626255,1718514722356,-500.0,0.00023287,3]
[329626256,1718514722369,-703.42,0.00023287,3]
[329626257,1718514722404,-721.36,0.00023287,3]
[329626258,1718514722446,-500.0,0.00023287,3]
[329626259,1718514722459,-4360.28,0.00023287,3]
[329626260,1718514722490,-2177.96,0.00023287,3]
[329626261,1718514722503,-500.0,0.00023287,3]
[329626262,1718514722523,-1356.14,0.00023287,3]
[329626263,1718514722551,-500.0,0.00023287,3]
[329626264,1718514722563,-500.0,0.00023287,3]
[329626265,1718514722576,-500.0,0.00023287,3]
[329626266,1718514722591,-749.56,0.00023287,3]
[329626267,1718514722603,-510.13968521,0.00023287,3]
[329626268,1718514722638,-1848.29,0.00023287,3]
[329626269,1718514722657,-500.0,0.00023287,3]
[329626270,1718514722675,-1211.0,0.00023287,3]
[329626271,1718514722694,-666.51,0.00023287,3]
[329626272,1718514722724,-578.68,0.00023287,3]
[329626273,1718514722736,-1213.86,0.00023287,3]
[329626274,1718514722748,-2709.96,0.00023287,3]
[329626275,1718514722773,-583.95,0.00023287,3]
[329626276,1718514722863,-500.0,0.00023287,3]
[329626277,1718514722881,-500.0,0.00023287,3]
[329626278,1718514722894,-578.04,0.00023287,3]
[329626279,1718514722930,-795.69,0.00023287,3]
[329626280,1718514722959,-1483.55,0.00023287,3]
[329626281,1718514722983,-790.88,0.00023287,3]
[329626282,1718514722994,-1309.75,0.00023287,3]
[329626283,1718514723017,-500.0,0.00023287,3]
[329626284,1718514723047,-500.0,0.00023287,3]
[329626285,1718514723106,-555.11,0.00023287,3]
[329626286,1718514723124,-606.05406348,0.00023287,3]
[329626287,1718514723156,-1243.88,0.00023287,3]
[329626288,1718514723240,-3595.59,0.00023287,3]
[329626289,1718514723258,-500.0,0.00023287,3]
[329626290,1718514723308,-500.0,0.00023287,3]
[329626291,1718514723336,-1564.83,0.00023287,3]
[329626292,1718514723370,-1006.94,0.00023287,3]
[329626293,1718514723402,-500.0,0.00023287,3]
[329626294,1718514723413,-1366.9,0.00023287,3]
[329626295,1718514723428,-500.0,0.00023287,3]
[329626296,1718514723463,-540.49035778,0.00023287,3]
[329626297,1718514723492,-799.86,0.00023287,3]
[329626298,1718514723536,-523.6,0.00023287,3]
[329626299,1718514723550,-448.26067521,0.00023287,3]
[329626300,1718514723581,-729.35,0.00023287,3]
[329626301,1718514723596,-2013.29,0.00023287,3]
[329626302,1718514723620,-500.0,0.00023287,3]
[329626303,1718514723641,-989.7,0.00023287,3]
[329626304,1718514723658,-1202.1,0.00023287,3]
[329626305,1718514723676,-1512.39,0.00023287,3]
[329626306,1718514723697,-500.0,0.00023287,3]
[329626307,1718514723723,-500.0,0.00023287,3]
[329626308,1718514723745,-898.42,0.00023287,3]
[329626309,1718514723788,-680.39,0.00023287,3]
[329626310,1718514723800,-512.03,0.00023287,3]
[329626311,1718514723818,-651.97,0.00023287,3]
[329626312,1718514723839,-525.67,0.00023287,3]
[329626313,1718514723860,-500.0,0.00023287,3]
[329626314,1718514723874,-1084.0,0.00023287,3]
[329626315,1718514723904,-1217.87,0.00023287,3]
[329626316,1718514723924,-4820.64,0.00023287,3]
[329626317,1718514723960,-1818.54,0.00023287,3]
[329626318,1718514723973,-633.1,0.00023287,3]
[329626319,1718514723993,-2630.9,0.00023287,3]
[329626320,1718514724004,-1495.18,0.00023287,3]
[329626321,1718514724018,-500.78,0.00023287,3]
[329626322,1718514724042,-1510.03,0.00023287,3]
[329626323,1718514724084,-1076.28,0.00023287,3]
[329626324,1718514724098,-500.0,0.00023287,3]
[329626325,1718514724136,-500.0,0.00023287,3]
[329626326,1718514724147,-1023.85,0.00023287,3]
[329626327,1718514724158,-500.0,0.00023287,3]
[329626328,1718514724171,-514.32,0.00023287,3]
[329626329,1718514724188,-801.98,0.00023287,3]
[329626330,1718514724200,-500.0,0.00023287,3]
[329626331,1718514724240,-526.07,0.00023287,3]
[329626332,1718514724264,-501.51,0.00023287,3]
[329626333,1718514724274,-5728.5,0.00023287,3]
[329626334,1718514724301,-1246.39,0.00023287,3]
[329626335,1718514724319,-12175.18,0.00023287,3]
[329626336,1718514724348,-1613.0,0.00023287,3]
[329626337,1718514724396,-1529.61,0.00023287,3]
[329626338,1718514724409,-918.72,0.00023287,3]
[329626339,1718514724422,-2489.26,0.00023287,3]
[329626340,1718514724433,-771.85,0.00023287,3]
[329626341,1718514724443,-500.0,0.00023287,3]
[329626342,1718514724455,-500.0,0.00023287,3]
[329626343,1718514724465,-379.98,0.00023288,2]
[329626344,1718514724478,-380.0,0.00023288,2]
[329626345,1718514724493,-502.7,0.00023288,2]
[329626346,1718514724509,-380.62,0.00023288,2]
[329626347,1718514724525,-380.71,0.00023288,2]
[329626348,1718514724563,-380.69,0.00023288,2]
[329626349,1718514724575,-6121.09,0.000233,2]
[329626350,1718514724592,-950.0,0.000234,2]
[329626351,1718514724604,-455.0,0.000234,2]
[329626352,1718514724619,-823.0,0.000234,2]
[329626353,1718514724630,-670.73,0.00023444,2]